fUSD/lending_fUSD_20240922
["ID","MTS","AMOUNT","RATE_DAILY","PERIOD"]
[338871400,1726968638438,-1000.0,0.00014925,2]
[338871401,1726968638447,-1000.0,0.00014925,2]
[338871402,1726968638455,-1000.0,0.00014925,2]
[338871403,1726968638465,-1000.0,0.00014925,2]
[338871404,1726968638474,-1000.0,0.00014925,2]
[338871405,1726968638483,-1000.0,0.00014925,2]
[338871406,1726968638492,-1000.0,0.00014925,2]
[338871407,1726968638502,-1000.0,0.00014925,2]
[338871408,1726968638511,-1000.0,0.00014925,2]
[338871409,1726968638519,-1000.0,0.00014925,2]
[338871410,1726968638529,-1000.0,0.00014925,2]
[338871411,1726968638538,-1000.0,0.00014925,2]
[338871412,1726968638547,-1135.9059,0.00014925,2]
[338871413,1726968638556,-320.95905747,0.00014973,2]
[338871414,1726968638565,-464.66295729,0.00014973,2]
[338871415,1726968638574,-157.41,0.0001499,2]
[338871416,1726968638582,-288.49531632,0.0001499,2]
[338871417,1726968638591,-2016.43726401,0.00014998,2]
[338871418,1726968638600,-182.96609444,0.00014999,2]
[338871419,1726968638609,-423.62638259,0.00014999,3]
[338871420,1726968638618,-500.0,0.00014999,2]
[338871421,1726968638627,-629.28538836,0.00014999,2]
[338871422,1726968638635,-500.0,0.00014999,2]
[338871423,1726968638644,-150.0,0.00014999,2]
[338871424,1726968638653,-150.0,0.00014999,2]
[338871425,1726968638662,-281.40701893,0.00014999,2]
[338871426,1726968638678,-201.12028001,0.00014999,2]
[338871427,1726968638689,-216.38186174,0.00014999,2]
[338871428,1726968638700,-562.0,0.00015,2]
[338871429,1726968638709,-37081.89304868,0.00015,2]
[338871430,1726968638719,-136414.66941964,0.00015,30]
[338871431,1726968638730,-1043303.54968232,0.00015,30]
[338871432,1726968638741,-638.24848553,0.00015,30]
[338871433,1726968638752,-660.42565983,0.00015,30]
[338871436,1726968639596,-1082.813,0.00014216,2]
[338871437,1726968639605,-369.44546956,0.00014999,2]
[338871439,1726968639615,-1104.58083119,0.00015,30]
[338871440,1726968639693,-787.06211324,0.00015,30]
[338871441,1726968639703,-1758.49529592,0.00015,30]
[338871442,1726968639950,-502.49888056,0.00015,30]
[338871443,1726968639962,-5749.0,0.00015,30]
[338871444,1726968639976,-2666.01834605,0.00015,30]
[338871445,1726968639987,-3756.6679994,0.00015,30]
[338871446,1726968639998,-955.08534173,0.00015,30]
[338871447,1726968640010,-1213.13686397,0.00015,30]
[338871448,1726968640021,-354.33584849,0.00015,30]
[338871449,1726968640032,-2923.62999489,0.00015,30]
[338871450,1726968640052,-531.2423039,0.00015,30]
[338871451,1726968642706,-274.32684427,0.000148,2]
[338871452,1726968642717,-295.21249238,0.000148,2]
[338871453,1726968642734,-130.30170762,0.000148,2]
[338871455,1726968642745,-170.95214737,0.00015,2]
[338871457,1726968642758,-333.04785263,0.00015,2]
[338871459,1726968642767,-1739.45214737,0.00015,30]
[338871460,1726968642779,-446.25,0.00015,30]
[338871461,1726968642814,-1016.18242901,0.00015,30]
[338871462,1726968642826,-6875.86578202,0.00015,30]
[338871463,1726968642838,-694.512008,0.00015,30]
[338871464,1726968642921,-27830.35753324,0.00015,30]
[338871470,1726968645644,-906.315,0.00015,30]
[338871472,1726968645656,-779.46259794,0.00015,30]
[338871473,1726968645668,-5734.42940032,0.00015,30]
[338871474,1726968645680,-856.20926424,0.00015,30]
[338871475,1726968645691,-2451.27290908,0.00015,30]
[338871476,1726968645702,-912.34615092,0.00015,30]
[338871477,1726968645743,-849.13398569,0.00015,30]
[338871478,1726968645754,-29936.43582786,0.00015,30]
[338871479,1726968645766,-1736.33855311,0.00015,30]
[338871480,1726968645777,-341.193087,0.00015,30]
[338871481,1726968645788,-3137.50000001,0.00015,30]
[338871482,1726968645799,-1621.72231958,0.00015,30]
[338871483,1726968645810,-293.24260366,0.00015,30]
[338871484,1726968645832,-3702.4455131,0.00015,30]
[338871485,1726968645843,-719.95798759,0.00015,30]
[338871486,1726968645854,-674.32839018,0.00015,30]
[338871487,1726968645865,-2709.03931074,0.00015,30]
[338871488,1726968645876,-31200.00991196,0.00015,30]
[338871489,1726968645888,-300.05752398,0.00015,30]
[338871490,1726968645899,-17412.24119828,0.00015,30]
[338871491,1726968645910,-21915.12056932,0.00015,30]
[338871492,1726968645920,-317.62218849,0.00015,30]
[338871493,1726968645931,-361.14764114,0.00015,30]
[338871494,1726968714126,500.0,0.00011164,2]
[338871495,1726968788270,166.13,0.00010959,2]
[338871496,1726968802291,500.0,0.00011164,2]
[338871498,1726969180688,-2278.44646447,0.00030693,30]
[338871499,1726969180711,-1000.0,0.00030693,30]
[338871500,1726969180733,-194.0,0.00030693,30]
[338871501,1726969180756,-194.0,0.00030693,30]
[338871502,1726969180778,-194.0,0.00030693,30]
[338871503,1726969180800,-200.0,0.00030693,30]
[338871504,1726969180823,-188.0,0.00030693,30]
[338871505,1726969180846,-200.0,0.00030693,30]
[338871506,1726969180869,-1033.76410759,0.00030693,120]
[338871507,1726969180892,-188.0,0.00030693,30]
[338871508,1726969180916,-1657.07668321,0.00030693,120]
[338871509,1726969180940,-910.43731674,0.00030693,120]
[338871510,1726969180963,-200.0,0.00030693,120]
[338871511,1726969180986,-1000.0,0.00030693,60]
[338871512,1726969181012,-851.08003251,0.00030693,30]
[338871513,1726969181034,-538.65806555,0.00030693,120]
[338871514,1726969181058,-1000.0,0.00030693,60]
[338871515,1726969181080,-955.84895131,0.00030693,120]
[338871516,1726969181104,-196.00944807,0.00030693,30]
[338871517,1726969181126,-1227.39422698,0.00030693,120]
[338871518,1726969181148,-1942.86641861,0.00030693,120]
[338871519,1726969181170,-1432.38201367,0.00030693,120]
[338871520,1726969181192,-256.73382459,0.00030693,30]
[338871521,1726969181214,-642.29132319,0.00030693,120]
[338871522,1726969181236,-1701.59454444,0.00030693,30]
[338871523,1726969181258,-289.7074492,0.00030693,31]
[338871524,1726969181281,-2234.27885035,0.00030693,30]
[338871525,1726969181307,-1408.6387651,0.00030693,30]
[338871526,1726969181330,-1101.57574043,0.00030693,30]
[338871527,1726969181355,-1073.40039271,0.00030693,30]
[338871528,1726969181541,-646.68397226,0.00030693,120]
[338871529,1726969181564,-756.0,0.00030693,120]
[338871530,1726969181586,-290.61104582,0.00030693,30]
[338871531,1726969181608,-2114.10142453,0.00030693,30]
[338871532,1726969181630,-1070.34195083,0.00030693,120]
[338871533,1726969181653,-266.0,0.00030693,30]
[338871534,1726969181675,-934.90323591,0.00030693,120]
[338871535,1726969181696,-171.20690709,0.00030693,120]
[338871536,1726969181718,-201.26683882,0.00030693,120]
[338871537,1726969181741,-1000.0,0.00030693,30]
[338871538,1726969181764,-1000.0,0.00030693,30]
[338871539,1726969181788,-1000.0,0.00030693,30]
[338871540,1726969181810,-1000.0,0.00030693,30]
[338871541,1726969181832,-1000.0,0.00030693,30]
[338871542,1726969181855,-805.76177089,0.00030693,30]
[338871543,1726969181877,-1000.0,0.00030693,30]
[338871544,1726969181900,-1000.0,0.00030693,30]
[338871545,1726969181923,-1000.0,0.00030693,30]
[338871546,1726969181946,-1000.0,0.00030693,30]
[338871547,1726969181969,-402.929834,0.00030693,30]
[338871548,1726969181994,-1000.0,0.00030693,60]
[338871549,1726969182022,-1000.0,0.00030693,30]
[338871550,1726969182045,-1000.0,0.00030693,30]
[338871551,1726969182067,-1000.0,0.00030693,30]
[338871552,1726969182091,-1000.0,0.00030693,60]
[338871553,1726969182113,-1000.0,0.00030693,30]
[338871554,1726969182136,-1000.0,0.00030693,30]
[338871555,1726969182168,-1000.0,0.00030693,30]
[338871556,1726969182193,-1000.0,0.00030693,60]
[338871557,1726969182216,-1000.0,0.00030693,60]
[338871558,1726969182239,-1000.0,0.00030693,30]
[338871559,1726969182262,-1000.0,0.00030693,60]
[338871560,1726969182286,-1008.85726328,0.00030693,30]
[338871561,1726969182310,-1000.0,0.00030693,60]
[338871562,1726969182334,-1000.0,0.00030693,30]
[338871563,1726969182357,-1000.0,0.00030693,30]
[338871564,1726969182382,-1000.0,0.00030693,60]
[338871565,1726969182406,-1000.0,0.00030693,60]
[338871566,1726969182429,-1000.0,0.00030693,120]
[338871567,1726969182453,-3000.0,0.00030693,120]
[338871568,1726969182477,-1000.0,0.00030693,120]
[338871569,1726969182500,-1000.0,0.00030693,120]
[338871570,1726969182524,-1000.0,0.00030693,30]
[338871571,1726969182548,-1000.0,0.00030693,60]
[338871572,1726969182571,-1000.0,0.00030693,30]
[338871573,1726969182595,-1000.0,0.00030693,60]
[338871574,1726969182619,-1000.0,0.00030693,30]
[338871575,1726969182642,-1000.0,0.00030693,30]
[338871576,1726969182666,-1000.0,0.00030693,120]
[338871577,1726969182689,-1000.0,0.00030693,30]
[338871578,1726969182715,-1000.0,0.00030693,30]
[338871579,1726969182737,-1000.0,0.00030693,30]
[338871580,1726969182760,-1000.0,0.00030693,60]
[338871581,1726969182783,-1000.0,0.00030693,60]
[338871582,1726969182805,-1000.0,0.00030693,30]
[338871583,1726969182827,-160.0,0.00030693,30]
[338871584,1726969182852,-1039.44,0.00030693,30]
[338871585,1726969182878,-50000.0,0.00030693,30]
[338871586,1726969182902,-9298.24283951,0.00030693,120]
[338871587,1726969182927,-155.0,0.00030693,120]
[338871588,1726969182955,-50000.0,0.00030693,31]
[338871589,1726969182981,-50000.0,0.00030693,32]
[338871590,1726969183011,-50000.0,0.00030693,33]
[338871591,1726969183036,-9388.46829834,0.00030693,34]
[338871592,1726969189703,-40611.53170166,0.00030693,34]
[338871593,1726969189728,-50000.0,0.00030693,35]
[338871594,1726969189752,-490.44582275,0.00030693,30]
[338871595,1726969189776,-366.54717739,0.00030693,30]
[338871596,1726969189799,-532.20283761,0.00030693,60]
[338871597,1726969189823,-2169.11099718,0.00030693,120]
[338871598,1726969189848,-840.83204312,0.00030693,30]
[338871599,1726969189872,-1000.0,0.00030693,30]
[338871600,1726969189896,-1931.07684093,0.00030693,30]
[338871601,1726969189919,-709.53947263,0.00030693,30]
[338871602,1726969189943,-187.96386556,0.00030693,60]
[338871603,1726969189966,-1951.99895358,0.00030693,120]
[338871604,1726969189993,-254.52917898,0.00030693,30]
[338871605,1726969190023,-721.97313461,0.00030693,120]
[338871606,1726969190048,-823.60424104,0.00030693,30]
[338871607,1726969190073,-1200.0,0.00030693,120]
[338871608,1726969190097,-831.48169503,0.00030693,30]
[338871609,1726969190120,-466.11048934,0.00030693,30]
[338871610,1726969190142,-895.6243598,0.00030693,30]
[338871611,1726969190166,-482.33850244,0.00030693,120]
[338871612,1726969190189,-200.45904424,0.00030693,30]
[338871613,1726969190211,-925.25880732,0.00030693,30]
[338871614,1726969190233,-199.02615054,0.00030693,120]
[338871615,1726969190393,-223.30069331,0.00030693,30]
[338871616,1726969190415,-952.57058089,0.00030693,120]
[338871617,1726969190438,-338.17917741,0.00030693,30]
[338871618,1726969190459,-1409.76618928,0.00030693,120]
[338871619,1726969190481,-1799.8041561,0.00030693,120]
[338871620,1726969190503,-320.62815689,0.00030693,120]
[338871621,1726969190526,-413.78948083,0.00030693,120]
[338871622,1726969190549,-1688.0,0.00030693,120]
[338871623,1726969190571,-32100.0,0.00030693,120]
[338871624,1726969190595,-2648.0,0.00030693,120]
[338871625,1726969190618,-1253.69770978,0.00030693,30]
[338871626,1726969190639,-200.13352828,0.00030693,30]
[338871627,1726969190662,-1114.10267855,0.00030693,30]
[338871628,1726969190685,-200.0,0.00030693,30]
[338871629,1726969190708,-200.0,0.00030693,30]
[338871630,1726969190732,-200.0,0.00030693,30]
[338871631,1726969190754,-200.0,0.00030693,30]
[338871632,1726969190776,-200.0,0.00030693,30]
[338871633,1726969190799,-200.0,0.00030693,30]
[338871634,1726969190821,-200.0,0.00030693,30]
[338871635,1726969190843,-200.0,0.00030693,30]
[338871636,1726969190865,-200.0,0.00030693,30]
[338871637,1726969190888,-200.0,0.00030693,30]
[338871638,1726969190911,-200.0,0.00030693,30]
[338871639,1726969190934,-200.0,0.00030693,30]
[338871640,1726969190957,-200.0,0.00030693,30]
[338871641,1726969190980,-200.0,0.00030693,30]
[338871642,1726969191006,-200.0,0.00030693,30]
[338871643,1726969191028,-200.0,0.00030693,30]
[338871644,1726969191052,-200.0,0.00030693,30]
[338871645,1726969191076,-200.0,0.00030693,30]
[338871646,1726969191098,-200.0,0.00030693,30]
[338871647,1726969191121,-200.0,0.00030693,30]
[338871648,1726969191145,-200.0,0.00030693,30]
[338871649,1726969191170,-200.0,0.00030693,30]
[338871650,1726969191194,-200.0,0.00030693,30]
[338871651,1726969191218,-200.0,0.00030693,30]
[338871652,1726969191241,-200.0,0.00030693,30]
[338871653,1726969191265,-200.0,0.00030693,30]
[338871654,1726969191289,-200.0,0.00030693,30]
[338871655,1726969191313,-200.0,0.00030693,30]
[338871656,1726969191337,-200.0,0.00030693,30]
[338871657,1726969191362,-200.0,0.00030693,30]
[338871658,1726969191386,-200.0,0.00030693,30]
[338871659,1726969191409,-200.0,0.00030693,30]
[338871660,1726969191433,-200.0,0.00030693,30]
[338871661,1726969191457,-200.0,0.00030693,30]
[338871662,1726969191482,-200.0,0.00030693,30]
[338871663,1726969191505,-200.0,0.00030693,30]
[338871664,1726969191529,-200.0,0.00030693,30]
[338871665,1726969191553,-200.0,0.00030693,30]
[338871666,1726969191577,-200.0,0.00030693,30]
[338871667,1726969191600,-200.0,0.00030693,30]
[338871668,1726969191624,-200.0,0.00030693,30]
[338871669,1726969191648,-200.0,0.00030693,30]
[338871670,1726969191672,-200.0,0.00030693,30]
[338871671,1726969191696,-200.0,0.00030693,30]
[338871672,1726969191719,-200.0,0.00030693,30]
[338871673,1726969191743,-200.0,0.00030693,30]
[338871674,1726969191767,-200.0,0.00030693,30]
[338871675,1726969191791,-200.0,0.00030693,30]
[338871676,1726969191815,-200.0,0.00030693,30]
[338871677,1726969191839,-200.0,0.00030693,30]
[338871678,1726969191864,-5000.0,0.00030693,32]
[338871679,1726969191890,-200.0,0.00030693,30]
[338871680,1726969191919,-200.0,0.00030693,30]
[338871681,1726969191945,-200.0,0.00030693,30]
[338871682,1726969191971,-200.0,0.00030693,30]
[338871683,1726969191998,-200.0,0.00030693,30]
[338871684,1726969192025,-200.0,0.00030693,30]
[338871685,1726969192049,-200.0,0.00030693,30]
[338871686,1726969192073,-200.0,0.00030693,30]
[338871687,1726969192098,-200.0,0.00030693,30]
[338871688,1726969192122,-200.0,0.00030693,30]
[338871689,1726969192145,-1987.29267368,0.00030693,120]
[338871690,1726969192172,-921.14410615,0.00030693,120]
[338871691,1726969192195,-1011.14933612,0.00030693,120]
[338871692,1726969192219,-2000.0,0.00030693,30]
[338871693,1726969192242,-2000.0,0.00030693,90]
[338871694,1726969192267,-2000.0,0.00030693,120]
[338871695,1726969192292,-2001.0,0.00030693,55]
[338871696,1726969192315,-2001.0,0.00030693,90]
[338871697,1726969192337,-2001.0,0.00030693,120]
[338871698,1726969192360,-1710.04418952,0.00030693,120]
[338871699,1726969192383,-2703.80342947,0.00030693,120]
[338871700,1726969192407,-2999.32099014,0.00030693,120]
[338871701,1726969192430,-6389.79878666,0.00030693,120]
[338871702,1726969192454,-3050.97061757,0.00030693,120]
[338871703,1726969192477,-2546.18413721,0.00030693,120]
[338871704,1726969192501,-3031.83425554,0.00030693,120]
[338871705,1726969192524,-1058.86715118,0.00030693,120]
[338871706,1726969192547,-20196.20022955,0.00030693,30]
[338871707,1726969192570,-150.0,0.00030693,120]
[338871708,1726969192593,-5633.33956987,0.00030693,60]
[338871709,1726969192616,-2811.55273646,0.00030693,90]
[338871710,1726969192640,-3050.53422387,0.00030693,30]
[338871711,1726969192663,-2659.92940873,0.00030693,30]
[338871712,1726969192687,-2500.0,0.00030693,30]
[338871713,1726969192710,-3000.0,0.00030693,30]
[338871714,1726969192732,-2955.58710433,0.00030693,30]
[338871715,1726969192755,-2780.30707949,0.00030693,30]
[338871716,1726969192778,-2585.60951259,0.00030693,30]
[338871717,1726969192802,-939.78230329,0.00030693,120]
[338871718,1726969192824,-903.38815143,0.00030693,30]
[338871719,1726969192967,-209.47225144,0.00030693,120]
[338871720,1726969192997,-411.69236605,0.00030693,120]
[338871721,1726969193026,-20000.0,0.00030693,90]
[338871722,1726969193051,-20000.0,0.00030693,120]
[338871723,1726969193075,-20000.0,0.00030693,120]
[338871724,1726969193099,-20000.0,0.00030693,120]
[338871725,1726969193125,-20000.0,0.00030693,90]
[338871726,1726969193149,-32570.23860265,0.00030693,90]
[338871727,1726969193173,-337.21608559,0.00030693,120]
[338871728,1726969193196,-4073.15458141,0.00030693,120]
[338871729,1726969193218,-927.10656284,0.00030693,120]
[338871730,1726969193241,-3131.25306057,0.00030693,120]
[338871731,1726969193264,-667.60210906,0.00030693,120]
[338871732,1726969193286,-2018.40579534,0.00030693,30]
[338871733,1726969193309,-1700212.89094983,0.00030693,30]
[338871734,1726969193332,-150.0,0.00030693,30]
[338871735,1726969193355,-150.0,0.00030693,30]
[338871736,1726969193379,-1000.0,0.00030693,120]
[338871737,1726969193401,-1000.70305357,0.00030693,120]
[338871738,1726969193425,-5712.38943562,0.00030693,120]
[338871739,1726969193449,-930.0,0.00030693,30]
[338871740,1726969193473,-881.09361378,0.00030693,120]
[338871741,1726969193496,-772.24110851,0.00030693,120]
[338871742,1726969193522,-158.50976434,0.00030693,30]
[338871743,1726969193545,-1005.07893693,0.00030693,120]
[338871744,1726969193569,-324.66910724,0.00030693,120]
[338871745,1726969193592,-232.16525389,0.00030693,120]
[338871746,1726969193614,-245.42267636,0.00030693,120]
[338871747,1726969193638,-573.39926555,0.00030693,31]
[338871748,1726969193663,-926.48190046,0.00030693,120]
[338871749,1726969193686,-767.67657925,0.00030693,120]
[338871750,1726969193712,-688.5302572,0.00030693,120]
[338871751,1726969193741,-1685.71800017,0.00030693,120]
[338871752,1726969193764,-194.77485174,0.00030693,31]
[338871753,1726969193786,-271.99843174,0.00030693,120]
[338871754,1726969193811,-836.78276127,0.00030693,120]
[338871755,1726969193838,-427.20787754,0.00030693,30]
[338871756,1726969193862,-3050.91870084,0.00030693,120]
[338871757,1726969193890,-937.76940306,0.00030693,120]
[338871758,1726969193914,-747.03569741,0.00030693,30]
[338871759,1726969193938,-551.23110613,0.00030693,120]
[338871760,1726969193963,-252.52129852,0.00030693,120]
[338871761,1726969193988,-3750.80888738,0.00030693,120]
[338871762,1726969194016,-1597.29275875,0.00030693,120]
[338871763,1726969194041,-1136.20889742,0.00030693,30]
[338871764,1726969194067,-7857.2226646,0.00030693,120]
[338871765,1726969194093,-3061.14674038,0.00030693,60]
[338871766,1726969194117,-4596.52,0.00030693,120]
[338871767,1726969194140,-32863.21682555,0.00030693,30]
[338871768,1726969194164,-927.61122379,0.00030693,120]
[338871769,1726969194186,-220.0,0.00030693,120]
[338871770,1726969194209,-647.0,0.00030693,30]
[338871771,1726969194232,-1513.81879743,0.00030693,120]
[338871772,1726969194254,-20489.47369537,0.00030693,30]
[338871773,1726969194277,-2208.57317046,0.00030693,60]
[338871774,1726969194300,-1798.97648661,0.00030693,120]
[338871775,1726969194321,-1158.37665771,0.00030693,120]
[338871776,1726969194343,-1020.76980267,0.00030693,120]
[338871777,1726969194367,-14840.99192853,0.00030693,120]
[338871778,1726969194390,-1104.80479364,0.00030693,30]
[338871779,1726969194413,-576.02904491,0.00030693,120]
[338871780,1726969194436,-1223.73181923,0.00030693,120]
[338871781,1726969194463,-796.0,0.00030693,120]
[338871782,1726969194490,-5000.0,0.00030693,33]
[338871783,1726969194514,-70944.75578882,0.00030693,30]
[338871784,1726969194537,-12737.3064122,0.00030693,30]
[338871785,1726969194562,-4310.5675001,0.00030693,30]
[338871786,1726969194585,-15558.16009862,0.00030693,30]
[338871787,1726969194607,-5680.23241485,0.00030693,30]
[338871788,1726969194632,-30671.51951421,0.00030693,30]
[338871789,1726969194659,-178100.38084786,0.00030693,30]
[338871790,1726969194690,-445741.88412309,0.00030693,30]
[338871791,1726969194725,719.21,0.00011875,2]
[338871793,1726969226463,-150.0,0.00016033,120]
[338871794,1726969226499,-150.0,0.00016213,120]
[338871795,1726969226536,-150.0,0.00016588,120]
[338871796,1726969226574,-150.0,0.00017446,120]
[338871797,1726969226612,-150.0,0.00018416,120]
[338871798,1726969226649,-150.0,0.00018858,120]
[338871799,1726969226687,-150.0,0.00018911,120]
[338871800,1726969226722,-150.0,0.00018937,120]
[338871801,1726969226759,-150.0,0.00019183,120]
[338871802,1726969226793,-150.0,0.00019193,120]
[338871803,1726969226828,-150.0,0.0001951,120]
[338871804,1726969226864,-150.0,0.00019724,120]
[338871805,1726969226907,-2821944.29664623,0.00021,60]
[338871806,1726969234199,-150.0,0.00021266,120]
[338871807,1726969234236,-150.0,0.0002179,120]
[338871808,1726969234272,-150.0,0.00021816,120]
[338871809,1726969234309,-150.0,0.00021854,120]
[338871810,1726969234357,-2350558.4514706,0.00022,120]
[338871811,1726969234392,-230.9,0.00022,120]
[338871814,1726969359603,300.41639115,0.00021,60]
[338871815,1726969506247,259.69,0.00010959,2]
[338871821,1726969831807,-300.0,0.00013487,2]
[338871822,1726969831817,-164.68285732,0.00013488,2]
[338871823,1726969831827,-153.32097658,0.00013488,2]
[338871824,1726969831837,-150.27312735,0.00013488,2]
[338871825,1726969831846,-150.29822048,0.00013488,2]
[338871826,1726969831856,-154.42711656,0.00013488,2]
[338871827,1726969831865,-150.1378891,0.00013488,2]
[338871828,1726969831874,-150.34874454,0.00013488,2]
[338871829,1726969831884,-150.20773453,0.00013488,2]
[338871830,1726969831893,-150.3261544,0.00013488,2]
[338871831,1726969831903,-529.58602416,0.00013523,2]
[338871832,1726969831927,-322.74987226,0.00013523,2]
[338871833,1726969832051,-36.14410358,0.00013523,2]
[338871834,1726969832061,-250.0,0.00013529,2]
[338871835,1726969832071,-199.69,0.00013611,2]
[338871836,1726969832081,-250.0,0.00013633,2]
[338871837,1726969832090,-166.3,0.00013661,2]
[338871838,1726969832100,-500.0,0.00013689,7]
[338871839,1726969832110,-500.0,0.00013689,7]
[338871840,1726969832120,-704.96,0.00013689,7]
[338871841,1726969832130,-250.0,0.00013787,2]
[338871842,1726969832140,-1000.0,0.00013804,2]
[338871843,1726969832149,-150.99,0.00013863,2]
[338871844,1726969832159,-197.72,0.00013863,2]
[338871845,1726969832169,-857.49,0.00013863,2]
[338871846,1726969832178,-150.0,0.00013863,2]
[338871847,1726969832188,-200.0,0.000139,5]
[338871848,1726969832198,-1095.12,0.000139,2]
[338871849,1726969832207,-499.99,0.000139,2]
[338871850,1726969832217,-172.59,0.00013955,2]
[338871851,1726969832226,-500.0,0.00013962,7]
[338871852,1726969832235,-299.99,0.0001399,2]
[338871853,1726969832248,-326.91,0.0001399,2]
[338871854,1726969832257,-500.0,0.00014,5]
[338871855,1726969832271,-276.08841773,0.00014038,2]
[338871856,1726969832281,-165.59,0.00014042,2]
[338871857,1726969832291,-800.0,0.000141,5]
[338871858,1726969832301,-719.21,0.00014139,2]
[338871859,1726969832311,-1100.0,0.000142,5]
[338871860,1726969832324,-500.0,0.00014235,7]
[338871861,1726969832334,-150.0,0.000143,2]
[338871862,1726969832344,-1400.0,0.000143,5]
[338871863,1726969832354,-200.0,0.000144,5]
[338871864,1726969832364,-170.93,0.00014445,2]
[338871865,1726969832374,-200.0,0.000145,5]
[338871866,1726969832383,-500.0,0.00014508,7]
[338871867,1726969832393,-278.98804616,0.00014535,2]
[338871868,1726969832403,-1554.236,0.000146,2]
[338871869,1726969832413,-472.115,0.000146,2]
[338871870,1726969832423,-13512.173,0.000146,2]
[338871871,1726969832433,-1148.091,0.000146,2]
[338871872,1726969832443,-5875.706,0.000146,2]
[338871873,1726969832453,-200.0,0.000146,5]
[338871874,1726969832463,-200.0,0.000147,5]
[338871875,1726969832472,-500.0,0.00014781,7]
[338871876,1726969832482,-420.0,0.00014783,2]
[338871877,1726969832492,-314.36043996,0.000148,2]
[338871878,1726969832501,-977.1193,0.000148,2]
[338871879,1726969832511,-925.0,0.000148,5]
[338871880,1726969832520,-2000.0,0.0001488,2]
[338871881,1726969832531,-331.527,0.00014899,2]
[338871882,1726969832540,-184.449,0.00014899,2]
[338871883,1726969832550,-192.7185,0.000149,2]
[338871884,1726969832560,-500.0,0.000149,2]
[338871885,1726969832569,-152.25,0.000149,31]
[338871886,1726969832579,-152.25,0.000149,31]
[338871887,1726969832588,-152.25,0.000149,31]
[338871888,1726969832597,-152.25,0.000149,31]
[338871889,1726969832607,-152.25,0.000149,31]
[338871890,1726969832616,-152.25,0.000149,31]
[338871891,1726969832626,-152.25,0.000149,31]
[338871892,1726969832635,-152.25,0.000149,31]
[338871893,1726969832646,-192.4876,0.000149,2]
[338871894,1726969832656,-5816.79433777,0.000149,2]
[338871895,1726969832665,-1000.0,0.000149,2]
[338871896,1726969832676,-228.68639737,0.000149,2]
[338871897,1726969832686,-267.33223786,0.00014973,2]
[338871898,1726969832695,-250.79,0.00014989,2]
[338871899,1726969832705,-250.79,0.0001499,2]
[338871900,1726969832714,-250.79,0.0001499,2]
[338871901,1726969832723,-250.79,0.0001499,2]
[338871902,1726969832733,-250.79,0.0001499,2]
[338871903,1726969832742,-3460.17,0.0001499,10]
[338871904,1726969832752,-250.79,0.0001499,2]
[338871905,1726969832761,-250.79,0.0001499,2]
[338871906,1726969832770,-250.79,0.0001499,2]
[338871907,1726969832779,-250.79,0.0001499,2]
[338871908,1726969832789,-250.79,0.0001499,2]
[338871909,1726969832798,-250.79,0.0001499,2]
[338871910,1726969832807,-250.79,0.0001499,2]
[338871911,1726969832817,-250.79,0.0001499,2]
[338871912,1726969832826,-250.79,0.0001499,2]
[338871913,1726969832835,-250.79,0.0001499,2]
[338871914,1726969832845,-250.79,0.0001499,2]
[338871915,1726969832854,-250.79,0.0001499,2]
[338871916,1726969832863,-250.79,0.0001499,2]
[338871917,1726969832872,-250.79,0.0001499,2]
[338871918,1726969832882,-250.79,0.0001499,2]
[338871919,1726969832893,-237.7000658,0.00014999,2]
[338871920,1726969832905,-164.55361023,0.00014999,2]